bitfinex-derivatives/quotes_ETHF0:USTF0_20251013
["timestamp","ask_amount","ask_price","bid_price","bid_amount"]
[1760366096253,2.3355,4120.2,4119.3,0.5686]
[1760366096454,5.5433,4120.4,4119.2,3.2078]
[1760366096757,3.2078,4120.4,4120.2,0.43651]
[1760366097154,2.3355,4120.3,4120.1,0.272]
[1760366097348,3.2078,4120.4,4120.3,0.43651]
[1760366097749,3.2078,4120.4,4120.1,0.272]
[1760366097948,3.2078,4120.4,4120.2,0.43651]
[1760366098259,1.09101,4121.3,4120.2,0.43651]
[1760366098260,5.5433,4121.3,4120.2,4.2991]
[1760366098452,3.2078,4121.3,4121.1,0.43642]
[1760366098656,0.00257122,4121.5,4121.2,0.272]
[1760366098860,5.5433,4121.3,4121.2,0.272]
[1760366099050,5.5433,4121.3,4120.1,3.2078]
[1760366099256,2.3355,4120.4,4120.2,0.272]
[1760366099561,2.77198,4120.6,4120.3,0.43651]
[1760366099857,3.2078,4120.7,4120.2,0.272]
[1760366100363,2.3355,4120.3,4120.2,0.272]
[1760366100558,2.3355,4121.4,4120.2,0.272]
[1760366100855,2.3355,4120.4,4119.7,0.272]
[1760366101063,2.3355,4120.2,4119.9,0.43655]
[1760366101258,2.3355,4120.2,4119.8,0.272]
[1760366101259,2.3355,4119.7,4119.5,3.2078]
[1760366101460,3.45593318,4120.7,4119.5,3.5044]
[1760366101461,2.3355,4120.7,4119.5,3.5044]
[1760366101655,3.2078,4121.1,4121.0,0.43643]
[1760366102156,3.2078,4121.1,4120.9,0.272]
[1760366102157,2.3355,4121.0,4120.9,0.272]
[1760366102353,2.77193,4121.0,4120.9,0.272]
[1760366102562,2.3355,4121.0,4120.9,0.272]
[1760366102767,3.2078,4121.1,4120.9,0.272]
[1760366103059,2.3355,4121.0,4120.9,0.70844]
[1760366103354,2.3355,4121.4,4120.9,0.272]
[1760366103747,0.8483,4121.6,4121.3,0.4364]
[1760366103952,1.28894907,4123.4,4120.9,0.272]
[1760366103953,2.3355,4122.9,4121.7,1.09088]
[1760366104149,3.2078,4124.3,4122.7,1.09063]
[1760366104351,0.43604,4124.8,4123.4,3.2078]
[1760366104550,0.43604,4124.8,4124.6,0.43604]
[1760366104551,2.3355,4124.8,4124.6,0.43604]
[1760366104761,3.2078,4125.5,4124.7,0.272]
[1760366104953,0.00234086,4125.5,4125.4,3.2078]
[1760366105152,3.2078,4126.5,4125.4,3.7764]
[1760366105360,3.2078,4126.5,4125.9,3.2078]
[1760366105550,0.8483,4127.2,4126.0,0.272]
[1760366105551,0.43589,4126.1,4126.0,0.272]
[1760366105756,0.8483,4125.6,4124.7,0.43851984]
[1760366105953,4.0561,4125.6,4124.8,0.273]
[1760366106153,4.0561,4125.6,4124.7,0.00248984]
[1760366106154,2.3355,4124.8,4124.7,0.00248984]
[1760366106353,2.3355,4124.8,4124.7,0.27448984]
[1760366107559,1.09017,4124.5,4122.7,3.2078]
[1760366107772,1.09017,4124.5,4122.8,0.272]
[1760366107773,2.3355,4123.7,4122.8,0.272]
[1760366108067,0.43617,4123.5,4122.8,0.272]
[1760366108367,2.3355,4123.5,4122.8,0.27506612]
[1760366108560,3.62003,4122.9,4122.8,0.00306612]
[1760366108760,6.82783,4122.9,4122.8,0.00306612]
[1760366109059,3.14278472,4123.5,4122.8,3.21086612]
[1760366109264,2.3355,4124.5,4123.4,3.2078]
[1760366109467,2.3355,4124.2,4123.9,3.2078]
[1760366109659,3.2078,4124.8,4123.9,3.2078]
[1760366109857,2.3355,4125.5,4123.7,0.2966]
[1760366109858,0.436,4125.2,4124.6,3.2078]
[1760366110058,3.2078,4125.4,4124.7,0.272]
[1760366110271,0.85024622,4125.6,4124.8,0.272]
[1760366110570,0.00194622,4125.6,4125.3,0.43598]
[1760366110769,0.8483,4126.5,4125.5,0.43596]
[1760366110959,3.1838,4127.4,4126.4,0.43585]
[1760366111160,0.43582,4126.9,4126.5,0.272]
[1760366111463,2.3355,4127.1,4126.5,0.272]
[1760366111661,2.3355,4126.7,4125.9,3.2078]
[1760366111856,0.43598,4125.3,4125.0,0.272]
[1760366112057,2.3355,4125.2,4125.1,0.272]
[1760366112367,0.43594,4125.7,4125.1,3.4798]
[1760366112565,0.43592,4125.9,4125.1,3.4798]
[1760366112863,0.43591,4125.9,4125.1,3.4798]
[1760366113361,0.43595,4125.6,4125.1,3.4798]
[1760366113561,0.43593,4125.8,4125.1,3.4798]
[1760366113759,2.3355,4125.9,4125.1,3.4798]
[1760366113958,0.00223136,4126.7,4125.8,3.2078]
[1760366114161,0.22,4127.3,4127.1,0.43578]
[1760366114365,0.022,4127.8,4127.2,3.7774]
[1760366114558,0.022,4127.8,4127.7,3.2078]
[1760366114760,0.022,4127.8,4127.7,3.64352]
[1760366115068,2.3355,4128.6,4127.9,0.4357]
[1760366115279,2.3355,4128.2,4128.0,0.273]
[1760366115465,2.1336,4128.1,4128.0,0.273]
[1760366115665,2.56929,4128.0,4127.9,0.27544922]
[1760366115865,2.1336,4128.0,4127.9,0.27544922]
[1760366116070,2.56929,4128.0,4127.9,0.27544922]
[1760366116268,8.93927629,4128.0,4127.9,0.27544922]
[1760366116466,8.93927629,4128.0,4125.8,0.229]
[1760366116467,2.1336,4127.8,4127.0,0.273]
[1760366116666,0.43577,4127.3,4126.9,0.273]
[1760366116866,2.1336,4127.1,4127.0,0.273]
[1760366117065,3.0453,4127.4,4127.0,0.273]
[1760366117263,3.20579915,4127.9,4127.3,0.43576]
[1760366117468,3.2078,4128.8,4127.8,3.2078]
[1760366117672,2.1336,4128.0,4127.9,0.273]
[1760366117874,3.2078,4128.8,4127.9,0.273]
[1760366117875,2.136587,4128.6,4127.9,0.273]
[1760366118169,2.136587,4128.6,4128.2,0.43566]
[1760366118371,0.002987,4128.6,4128.5,3.2078]
[1760366118561,1.28378,4130.1,4128.5,3.7098]
[1760366118764,0.8483,4130.1,4130.0,3.2078]
[1760366118964,2.9819,4130.1,4130.0,3.4808]
[1760366119161,4.1195,4131.0,4130.0,3.4808]
[1760366119461,3.2078,4132.5,4131.6,0.43531]
[1760366119670,0.5117,4131.9,4128.7,2.2264]
[1760366119966,3.2078,4129.1,4128.8,2.2264]
[1760366120270,3.2078,4129.1,4128.0,0.8536]
[1760366120271,3.2078,4129.8,4129.0,2.2264]
[1760366120568,3.2078,4129.2,4129.1,0.28]
[1760366120760,3.20975138,4129.2,4129.1,0.28192413]
[1760366120963,3.20975138,4129.2,4128.4,2.2264]
[1760366120964,5.34335138,4129.2,4127.5,2.2264]
[1760366121164,5.34335138,4129.2,4127.6,0.279]
[1760366121165,3.2078,4128.9,4127.6,0.279]
[1760366121364,0.00195138,4129.2,4129.0,2.2264]
[1760366121564,0.00195138,4129.2,4129.1,0.279]
[1760366121767,3.20975138,4129.2,4129.1,0.279]
[1760366121970,5.34335138,4129.2,4129.1,0.28176256]
[1760366122172,8.55868196,4129.2,4129.1,0.00276256]
[1760366122368,3.20975138,4129.2,4129.1,0.00276256]
[1760366122569,5.3414,4130.4,4129.1,5.43696256]
[1760366122783,3.2078,4130.4,4129.4,3.2078]
[1760366123067,0.5117,4131.9,4129.8,2.2264]
[1760366123068,3.2078,4130.5,4129.8,2.2264]
[1760366123277,0.43552,4129.7,4129.1,2.22916256]
[1760366123463,3.2078,4129.4,4129.2,0.279]
[1760366123668,3.20995749,4129.4,4129.2,0.279]
[1760366123864,3.20995749,4129.4,4129.3,0.279]
[1760366124270,0.00215749,4129.4,4129.3,2.5054]
[1760366124676,3.20995749,4129.4,4129.3,2.5054]
[1760366124877,3.20995749,4129.4,4129.3,0.279]
[1760366125372,5.34355749,4129.4,4129.3,0.279]
[1760366125674,3.20995749,4129.4,4129.3,0.279]
[1760366125975,3.20995749,4129.4,4129.3,2.5054]
[1760366126378,0.00215749,4129.4,4129.3,2.5054]
[1760366126875,3.2078,4130.5,4130.2,0.43545]
[1760366127177,3.2078,4130.5,4130.3,0.278]
[1760366127380,3.2078,4130.5,4129.1,3.21056256]
[1760366127381,5.3414,4130.5,4130.4,0.278]
[1760366127573,2.1336,4130.3,4129.9,0.278]
[1760366127768,4.29638,4130.5,4129.1,0.00276256]
[1760366127769,2.1336,4129.6,4129.4,0.278]
[1760366127968,3.2078,4130.0,4129.4,2.5044]
[1760366128373,3.2078,4130.0,4129.4,0.278]
[1760366128572,3.2078,4129.5,4129.4,0.278]
[1760366129176,5.3414,4129.5,4129.4,0.278]
[1760366129479,2.56917,4129.2,4129.1,0.00276256]
[1760366129672,2.1336,4129.2,4129.1,0.00276256]
[1760366129878,5.29220158,4129.2,4129.1,0.00276256]
[1760366130269,2.1336,4129.1,4128.8,0.278]
[1760366130473,5.777,4128.9,4128.8,0.278]
[1760366130676,2.1336,4128.8,4127.8,0.43571]
[1760366130877,3.2078,4127.9,4127.4,2.2264]
[1760366131075,3.2078,4128.5,4128.4,0.43565]
[1760366131278,3.2078,4129.3,4129.1,0.43557]
[1760366131479,1.08844,4131.1,4129.2,2.5044]
[1760366131480,2.1336,4130.1,4129.2,2.5044]
[1760366131683,3.6433,4129.8,4129.2,0.71356]
[1760366131975,3.2078,4129.8,4129.7,2.2264]
[1760366132180,3.2078,4129.8,4129.6,0.43552]
[1760366132377,3.2078,4129.8,4129.0,2.2264]
[1760366132575,3.2078,4129.8,4128.4,1.09222465]
[1760366132576,2.1336,4129.7,4129.2,0.43556]
[1760366132882,2.1336,4129.2,4129.1,0.278]
[1760366133277,0.43563,4128.6,4128.4,0.00310465]
[1760366133577,5.3414,4128.5,4128.4,0.00310465]
[1760366133776,8.49858773,4128.5,4128.4,0.00310465]
[1760366133978,0.9117,4128.3,4125.8,3.2078]
[1760366134187,3.2078,4126.3,4126.1,0.43589]
[1760366134371,3.2078,4126.9,4126.2,2.2264]
[1760366134571,3.2078,4126.9,4126.0,2.2264]
[1760366134776,3.2078,4126.4,4125.8,0.71392]
[1760366134974,3.2078,4126.4,4123.9,2.2264]
[1760366134975,5.33418,4125.9,4123.9,2.2264]
[1760366135179,3.2078,4124.8,4124.0,0.278]
[1760366135576,3.2078,4124.3,4124.1,0.4361]
[1760366135773,3.2078,4124.3,4124.0,0.278]
[1760366135974,5.3414,4124.3,4124.0,0.28087873]
[1760366136175,2.1336,4124.1,4124.0,0.28087873]
[1760366137082,5.67804224,4124.1,4124.0,0.00287873]
[1760366137278,5.67804224,4124.1,4122.0,11.437]
[1760366137279,2.1336,4123.9,4122.0,11.437]
[1760366137486,3.2078,4122.9,4122.7,0.43625]
[1760366137895,3.2078,4122.9,4121.8,4.29868]
[1760366137896,2.1336,4122.7,4122.1,0.277]
[1760366138091,3.2078,4122.9,4122.4,0.43628]
[1760366138288,2.1336,4122.8,4122.4,0.00193251]
[1760366138489,3.21020231,4122.9,4122.4,2.22833251]
[1760366138685,3.21020231,4122.9,4122.4,0.00193251]
[1760366138891,0.00240231,4122.9,4122.8,2.2264]
[1760366139091,0.00240231,4122.9,4122.8,2.5034]
[1760366139785,3.2078,4124.1,4123.0,10.90559]
[1760366139992,13.07364,4127.2,4122.8,11.18308]
[1760366139993,2.1336,4124.7,4123.8,0.43614]
[1760366140190,0.43611,4124.1,4123.8,0.277]
[1760366140396,2.1336,4123.9,4122.7,3.2078]
[1760366140592,5.3414,4123.3,4123.2,0.277]
[1760366140799,5.34358664,4123.3,4123.2,0.277]
[1760366140999,3.20998664,4123.3,4123.2,0.277]
[1760366141693,0.00218664,4123.3,4123.2,2.5034]
[1760366142087,0.00218664,4123.3,4123.2,5.7112]
[1760366142294,0.00218664,4123.3,4123.2,2.5034]
[1760366142492,3.2078,4124.3,4124.2,0.43609]
[1760366142698,3.2078,4124.3,4124.2,0.71309]
[1760366142891,3.0453,4125.0,4124.2,2.93949]
[1760366142892,3.2078,4124.8,4124.2,2.93949]
[1760366143092,3.2078,4124.8,4124.2,3.59363]
[1760366143291,3.2078,4124.3,4123.4,2.2264]
[1760366143592,3.2078,4124.3,4123.5,0.277]
[1760366143593,5.3414,4123.7,4123.5,0.277]
[1760366143793,2.1336,4123.6,4123.5,0.277]
[1760366144093,3.19658391,4123.6,4123.1,0.277]
[1760366144302,3.2078,4123.7,4123.1,0.277]
[1760366144598,3.2078,4123.2,4123.1,0.277]
[1760366144792,3.2078,4124.0,4123.6,0.43615]
[1760366144991,3.2078,4124.0,4123.7,0.277]
[1760366145195,5.3414,4124.0,4123.7,0.277]
[1760366145399,5.3414,4124.0,4123.8,0.43613]
[1760366145594,3.2078,4124.0,4123.9,2.1963]
[1760366145796,0.00224574,4124.3,4124.2,2.63239]
[1760366145989,0.00224574,4124.3,4124.2,0.43609]
[1760366146190,0.9117,4126.5,4124.4,1.09017]
[1760366146191,3.2078,4125.5,4124.4,1.09017]
[1760366146395,3.2078,4126.1,4125.7,0.43592]
[1760366146591,3.2078,4126.1,4125.9,0.43591]
[1760366146796,3.2078,4126.1,4125.5,0.277]
[1760366146797,3.2078,4126.1,4125.7,0.43593]
[1760366147002,3.2078,4126.1,4125.1,0.43599]
[1760366147003,2.2332,4125.8,4125.1,0.43599]
[1760366147298,2.58538,4125.3,4125.2,0.277]
[1760366147599,3.64377,4125.4,4125.2,0.277]
[1760366147808,2.1494,4125.3,4125.2,0.277]
[1760366148192,2.58539,4125.2,4125.1,0.00222971]
[1760366148700,5.35777808,4125.2,4125.1,0.00222971]
[1760366149395,3.64377,4125.4,4125.1,0.00222971]
[1760366149698,3.64377,4125.4,4123.3,3.2078]
[1760366149699,0.43606,4124.6,4123.3,3.2078]
[1760366149889,6.39758722,4125.3,4123.3,3.2078]
[1760366149890,2.1494,4124.2,4123.9,0.43612]
[1760366150095,2.1494,4124.2,4123.4,0.276]
[1760366150096,0.4361,4124.2,4123.4,0.276]
[1760366150294,3.2078,4123.5,4123.4,2.94748]
[1760366150802,3.2078,4123.5,4123.4,2.95036091]
[1760366151296,3.2078,4124.0,4123.9,0.43612]
[1760366151496,3.2078,4124.0,4123.5,1.09041]
[1760366151497,3.2078,4125.1,4125.0,2.67131]
[1760366151701,3.2078,4125.1,4125.0,0.276]
[1760366151900,3.64381,4125.1,4124.2,2.2353]
[1760366152095,3.2078,4124.6,4124.4,0.43607]
[1760366152291,2.1494,4124.5,4124.4,0.43607]
[1760366152495,2.1494,4124.5,4123.1,4.29833]
[1760366152496,2.1494,4124.0,4123.1,4.29833]
[1760366152702,3.2078,4123.8,4123.5,0.43616]
[1760366152904,2.1494,4123.5,4123.0,0.276]
[1760366153092,3.2078,4123.8,4123.1,0.4362]
[1760366153093,0.43616,4123.6,4123.1,0.4362]
[1760366153298,2.1494,4123.5,4123.0,0.71222]
[1760366153693,2.1494,4123.5,4123.2,0.4362]
[1760366153897,2.1494,4123.5,4123.0,0.71221]
[1760366154301,2.1494,4123.5,4123.0,0.276]
[1760366154704,2.1494,4123.5,4122.3,2.2353]
[1760366154705,2.1494,4123.5,4123.1,0.276]
[1760366154999,2.1494,4123.5,4123.3,0.43618]
[1760366155208,0.43616,4123.7,4123.1,0.276]
[1760366155398,2.58556,4123.7,4123.4,0.43905091]
[1760366155597,2.1494,4123.7,4123.5,0.43617]
[1760366155798,3.2078,4123.8,4123.7,0.43615]
[1760366155998,2.1494,4123.7,4123.4,0.00288091]
[1760366156208,2.58557,4123.5,4123.4,0.00288091]
[1760366156405,3.15071078,4123.6,4123.5,0.43617]
[1760366156705,3.2078,4123.8,4123.5,0.43617]
[1760366156903,3.2078,4123.8,4123.6,2.67145]
[1760366157301,3.2078,4123.8,4123.6,0.43615]
[1760366157509,3.2078,4123.8,4123.7,2.2353]
[1760366157809,3.2078,4123.8,4123.6,0.43615]
[1760366158201,3.2078,4123.8,4123.6,0.28615]
[1760366158506,2.1494,4123.7,4123.6,0.28615]
[1760366158705,2.1494,4123.7,4123.4,0.43905091]
[1760366158906,2.1494,4123.7,4123.5,0.43616]
[1760366159711,2.1494,4123.7,4123.4,0.00288091]
[1760366159913,2.1494,4123.5,4123.4,0.00288091]
[1760366160206,0.275,4124.2,4123.5,2.2353]
[1760366160207,3.2078,4123.7,4123.5,2.2353]
[1760366160503,3.2078,4123.7,4123.6,2.2353]
[1760366160706,3.2078,4124.3,4124.2,0.43609]
[1760366160897,3.2078,4124.3,4124.2,2.94639]
[1760366161102,3.2078,4124.8,4124.7,0.43604]
[1760366161401,2.1494,4124.7,4123.6,1.09038]
[1760366161596,2.1494,4124.7,4123.5,5.4431]
[1760366161597,3.2078,4124.8,4124.6,0.43605]
[1760366161795,3.2078,4124.8,4124.7,0.275]
[1760366161796,5.3572,4124.8,4124.7,0.275]
[1760366162301,3.2078,4124.8,4124.7,2.5103]
[1760366162702,3.2078,4124.8,4124.7,0.275]
[1760366163110,0.85651505,4126.7,4125.2,2.67129]
[1760366163111,3.2078,4125.3,4125.2,2.67129]
[1760366163908,5.3572,4125.3,4125.2,0.274]
[1760366164518,5.3572,4125.3,4124.9,0.274]
[1760366164812,3.2078,4125.3,4125.2,2.2353]
[1760366165008,2.1494,4125.2,4125.0,0.436]
[1760366165309,3.2078,4125.3,4124.9,0.274]
[1760366165310,2.1494,4125.0,4124.9,0.274]
[1760366165499,5.3572,4125.3,4124.9,0.274]
[1760366165809,5.3572,4125.3,4124.9,0.11276265]
[1760366165810,2.1494,4125.0,4124.9,0.11276265]
[1760366166810,0.43603,4124.9,4124.7,0.274]
[1760366167012,0.8818,4125.1,4124.7,0.274]
[1760366167013,3.2078,4124.8,4124.7,2.94534]
[1760366167308,3.2078,4125.3,4125.2,2.67129]
[1760366167505,3.21085384,4125.8,4125.2,2.94529]
[1760366167810,3.2078,4125.3,4125.2,0.274]
[1760366168012,0.43599,4125.2,4124.6,2.2353]
[1760366168210,2.1494,4125.6,4124.8,0.43603]
[1760366168409,3.2078,4124.9,4124.8,0.43603]
[1760366168607,3.2078,4124.9,4124.8,0.71003]
[1760366168809,3.2078,4125.6,4125.5,0.43596]
[1760366169112,3.2078,4125.6,4125.5,2.94526]
[1760366169502,0.00305384,4125.8,4125.7,0.43594]
[1760366169711,0.00305384,4125.8,4125.7,2.67124]
[1760366169905,3.21085384,4125.8,4125.5,0.274]
[1760366170207,2.1494,4125.6,4125.5,0.274]
[1760366170506,3.21085384,4125.8,4125.6,0.43595]
[1760366170715,2.1494,4125.6,4125.5,0.274]
[1760366171408,2.1494,4125.6,4124.2,2.38555431]
[1760366171608,3.2078,4124.7,4124.6,0.43605]
[1760366172411,3.2078,4125.2,4125.0,0.43601]
[1760366172603,2.5854,4125.1,4124.9,0.273]
[1760366172807,2.58542,4124.9,4124.6,0.43605]
[1760366173114,2.1494,4124.6,4124.5,0.43606]
[1760366173412,5.3572,4124.7,4124.5,0.43606]
[1760366173715,2.1494,4124.6,4124.4,0.273]
[1760366173911,2.1494,4124.6,4124.5,0.43606]
[1760366174405,3.2078,4124.7,4124.5,0.43606]
[1760366174612,3.2078,4125.2,4125.1,2.2353]
[1760366174809,3.2078,4125.2,4125.1,2.5083]
[1760366175321,3.21085384,4125.8,4125.7,2.2353]
[1760366175501,3.21085384,4125.8,4125.7,2.5083]
[1760366175906,3.21085384,4125.8,4125.7,0.273]
[1760366176210,3.21085384,4125.8,4125.7,2.5282]
[1760366176409,3.21085384,4125.8,4125.7,2.96414]
[1760366177313,0.00305384,4125.8,4125.7,2.96414]
[1760366177508,3.2078,4126.8,4126.7,0.43583]
[1760366177708,5.4685,4126.8,4126.7,0.272]
[1760366178010,3.2078,4126.8,4126.7,0.272]
[1760366178311,3.2078,4127.3,4127.2,2.2552]
[1760366178512,3.21083068,4127.3,4127.2,2.5291392]
[1760366179109,3.21083068,4127.3,4127.2,0.2739392]
[1760366179416,5.47153068,4127.3,4127.2,0.2739392]
[1760366180306,2.2607,4127.1,4125.9,0.43591]
[1760366180507,3.2078,4126.1,4126.0,0.7079]
[1760366180910,3.2078,4126.1,4126.0,0.272]
[1760366181110,5.4685,4126.1,4126.0,0.272]
[1760366181411,5.4685,4126.1,4126.0,0.27421713]
[1760366181716,8.93701524,4126.1,4126.0,1e-08]
[1760366182107,8.66501524,4126.1,4126.0,1e-08]
[1760366182609,8.93601524,4126.1,4126.0,1e-08]
[1760366183010,5.4685,4126.1,4126.0,1e-08]
[1760366183211,5.4685,4126.1,4126.0,2.52620001]
[1760366183212,3.2078,4126.1,4126.0,2.52620001]
[1760366183705,3.2078,4126.1,4126.0,0.27100001]
[1760366183706,5.90439,4126.1,4126.0,0.27100001]
[1760366183908,5.90439,4126.1,4126.0,1e-08]
[1760366184515,9.10337601,4126.1,4126.0,1e-08]
[1760366184917,2.2607,4125.6,4123.7,1.29533431]
[1760366185124,0.4361,4124.2,4124.0,0.43611]
[1760366185315,0.4361,4124.2,4123.8,0.271]
[1760366185514,3.2078,4124.3,4124.2,0.43609]
[1760366185817,3.64388,4124.3,4123.8,0.271]
[1760366186122,0.43612,4124.0,4123.8,0.27369703]
[1760366186305,3.20950546,4124.3,4123.8,0.27369703]
[1760366186511,2.2607,4123.9,4123.8,0.27369703]
[1760366187214,2.2607,4123.9,4123.8,0.00269703]
[1760366187410,3.20950546,4124.3,4123.8,2.25789703]
[1760366187721,2.2607,4123.9,4123.8,0.00269703]
[1760366190619,2.69683,4123.9,4123.8,0.00269703]
[1760366191415,2.2607,4123.9,4123.8,0.00269703]
[1760366191918,2.2607,4123.9,4123.8,0.43883703]
[1760366192115,3.20950546,4124.3,4123.9,0.43612]
[1760366192319,2.2607,4123.9,4123.8,0.00269703]
[1760366193917,0.43612,4124.0,4123.8,0.00269703]
[1760366194123,2.2607,4123.9,4123.8,0.00269703]
[1760366195119,5.61811571,4123.9,4122.0,1.29533431]
[1760366195322,0.43625,4122.7,4122.5,0.43627]
[1760366195517,3.2078,4122.7,4122.6,0.43626]
[1760366195824,5.4685,4122.7,4122.6,0.43626]
[1760366196126,5.4685,4122.7,4122.6,0.00281986]
[1760366196127,5.90476,4122.7,4122.6,0.00281986]
[1760366196725,5.4685,4122.7,4122.6,0.00281986]
[1760366196924,3.2078,4122.7,4122.6,2.25801986]
[1760366198116,3.2078,4122.7,4122.6,0.00281986]
[1760366198322,3.2078,4122.7,4122.6,2.25801986]
[1760366199226,5.4685,4122.7,4122.6,0.00281986]
[1760366199421,3.2078,4122.7,4122.6,0.00281986]
[1760366199928,3.2078,4122.7,4122.6,2.25801986]
[1760366200427,3.2078,4122.7,4122.6,0.00281986]
[1760366200628,5.4685,4122.7,4122.6,0.00281986]
[1760366201124,5.90475,4122.7,4122.6,0.00281986]
[1760366202322,5.90475,4122.7,4122.6,0.43907986]
[1760366202323,3.2078,4122.7,4122.6,0.43907986]
[1760366202524,5.90475,4122.7,4122.6,0.00281986]
[1760366203527,3.2078,4122.7,4122.6,2.69427986]
[1760366204420,0.43611,4124.1,4123.3,1.09047]
[1760366204624,0.43617,4123.5,4123.4,0.268]
[1760366204822,2.69687,4123.5,4123.4,0.268]
[1760366205024,2.2607,4123.5,4123.4,0.268]
[1760366205329,3.2078,4123.7,4123.4,0.70418]
[1760366205527,2.56097,4123.5,4123.4,0.70418]
[1760366205823,2.56097,4123.5,4123.4,0.268]
[1760366206024,2.1248,4122.8,4122.6,0.43907986]
[1760366206232,2.1248,4122.8,4122.7,0.268]
[1760366206727,2.1248,4122.8,4122.7,0.70425]
[1760366206927,1.09044,4123.5,4122.7,0.70425]
[1760366206928,3.2078,4123.5,4123.4,0.43618]
[1760366207228,5.76877,4123.5,4123.4,0.268]
[1760366207624,2.1248,4123.5,4123.4,0.70418]
[1760366207818,2.1248,4123.5,4123.4,1.83128]
[1760366207819,3.2078,4123.5,4123.4,1.83128]
[1760366208023,3.64392,4124.0,4123.9,0.43613]
[1760366208224,3.2078,4124.0,4123.9,0.43613]
[1760366208418,0.00170546,4124.3,4124.2,0.43609]
[1760366208619,0.00170546,4124.3,4124.2,1.83119]
[1760366209034,3.2078,4125.0,4124.9,0.43602]
[1760366209227,3.2078,4125.0,4124.9,1.83112]
[1760366209430,5.3741,4125.0,4124.9,0.70402]
[1760366209730,6.2717,4125.0,4124.9,0.70402]
[1760366209926,2.1663,4124.9,4124.6,0.43604]
[1760366210226,2.1663,4124.9,4124.4,3.2078]
[1760366210227,1.09009,4124.8,4123.8,3.2078]
[1760366210431,0.43611,4124.1,4123.8,3.64393]
[1760366210632,2.1663,4124.0,4123.9,0.268]
[1760366210820,3.0639,4124.0,4123.4,1.29533431]
[1760366211024,3.0639,4123.5,4123.3,3.64398]
[1760366211221,0.8976,4123.5,4123.4,0.268]
[1760366211732,2.1663,4123.5,4123.4,0.268]
[1760366212932,3.0639,4123.5,4123.4,0.268]
[1760366213536,2.1663,4123.5,4123.4,0.268]
[1760366213833,0.43615,4123.7,4123.4,0.70418]
[1760366214034,2.1663,4123.6,4123.4,0.70418]
[1760366214228,2.1663,4123.5,4123.4,0.268]
[1760366214632,2.1663,4123.5,4123.1,1.29533431]
[1760366214633,0.4362,4123.2,4123.1,1.29533431]
[1760366214828,0.8976,4123.5,4122.7,4.93970061]
[1760366214829,3.50012,4123.0,4122.8,1.29533431]
[1760366215024,2.1663,4122.8,4122.7,3.2078]
[1760366215338,2.1663,4122.8,4122.7,3.4758]
[1760366215830,5.3741,4122.8,4122.7,0.268]
[1760366216633,2.1663,4122.8,4122.7,0.268]
[1760366217332,4.2983,4123.3,4122.7,0.268]
[1760366217333,3.2078,4123.3,4122.7,0.268]
[1760366217537,3.2078,4123.3,4123.1,0.4362]
[1760366217840,3.64399,4123.3,4123.2,0.268]
[1760366218235,5.81029,4123.3,4123.2,0.268]
[1760366220128,2.1663,4122.9,4122.7,0.268]
[1760366220436,3.2078,4122.8,4122.7,0.268]
[1760366220631,0.43609,4124.2,4123.7,0.43615]
[1760366220833,3.2078,4124.3,4124.1,0.4361]
[1760366221230,3.2078,4124.8,4124.7,0.43604]
[1760366221434,0.00279299,4124.9,4124.8,1.1271]
[1760366221737,0.00279299,4124.9,4124.7,0.70404]
[1760366221738,3.2078,4125.8,4125.0,1.09003]
[1760366221939,2.1663,4125.7,4125.6,0.43594]
[1760366222137,2.1663,4125.7,4125.6,0.268]
[1760366222337,0.8976,4125.6,4125.1,0.43599]
[1760366222531,2.1663,4125.5,4125.2,0.268]
[1760366222738,2.1663,4125.3,4125.2,0.27037678]
[1760366222941,0.00237212,4125.5,4125.4,1.1243]
[1760366223132,0.00237212,4125.5,4125.4,4.3321]
[1760366223436,2.1663,4126.6,4126.4,0.43586]
[1760366223641,2.1663,4126.6,4126.5,0.268]
[1760366223838,3.2078,4127.1,4127.0,0.4358]
[1760366224044,3.2078,4127.1,4127.0,0.7038]
[1760366224241,2.60204,4127.6,4127.1,0.43578]
[1760366224242,3.64354,4127.6,4127.1,0.43578]
[1760366224431,3.64354,4127.6,4126.3,1.08968]
[1760366224432,2.1663,4127.5,4126.8,0.43582]
[1760366224634,2.1663,4127.0,4126.9,0.268]
[1760366224831,2.1663,4127.0,4126.7,0.43582]
[1760366225037,2.1663,4127.0,4126.2,3.2078]
[1760366225038,3.2078,4127.0,4126.5,0.43585]
[1760366225235,2.1663,4126.9,4126.6,0.268]
[1760366225541,3.2078,4127.0,4126.8,0.43581]
[1760366226438,2.1663,4127.3,4126.6,0.268]
[1760366226640,3.64355,4127.5,4126.7,1.1243]
[1760366226841,3.64355,4127.5,4127.1,0.43578]
[1760366227148,2.1663,4126.9,4126.2,3.2078]
[1760366227335,2.1663,4126.5,4126.3,0.70386]
[1760366227537,0.43592,4125.8,4125.3,1.73829563]
[1760366227735,0.43595,4125.6,4125.4,0.268]
[1760366228039,2.1663,4125.5,4125.4,0.268]
[1760366228540,2.1663,4125.3,4125.2,0.00237678]
[1760366229246,5.29307383,4125.3,4125.2,0.00237678]
[1760366229543,2.1663,4125.3,4125.2,0.00237678]
[1760366229935,2.1663,4126.0,4125.2,0.00237678]
[1760366230142,3.2078,4125.5,4125.2,0.00237678]
[1760366230336,2.1663,4125.4,4125.2,0.00237678]
[1760366230534,2.1663,4125.3,4125.2,0.00237678]